fUST/lending_fUST_20250530
["ID","MTS","AMOUNT","RATE_DAILY","PERIOD"]
[362998547,1748547041933,-430.0,0.00019178,2]
[362998549,1748547041943,-430.0,0.00019178,2]
[362998550,1748547041951,-430.0,0.00019178,2]
[362998552,1748547041961,-430.0,0.00019178,2]
[362998554,1748547041971,-430.0,0.00019178,2]
[362998556,1748547041980,-3675.07,0.00019178,2]
[362998558,1748547041990,-430.0,0.00019178,2]
[362998560,1748547041999,-430.0,0.00019178,2]
[362998562,1748547042009,-430.0,0.00019178,2]
[362998564,1748547042018,-430.0,0.00019178,2]
[362998566,1748547042027,-1488.94,0.00019178,2]
[362998568,1748547042036,-430.0,0.00019178,2]
[362998570,1748547042045,-481.49,0.00019178,2]
[362998572,1748547042054,-430.0,0.00019178,2]
[362998574,1748547042064,-430.0,0.00019178,2]
[362998576,1748547042073,-1406.49,0.00019178,2]
[362998578,1748547042082,-430.0,0.00019178,2]
[362998580,1748547042091,-430.0,0.00019178,2]
[362998582,1748547042101,-430.0,0.00019178,2]
[362998584,1748547042111,-5245.13,0.00019178,2]
[362998586,1748547042120,-430.0,0.00019178,2]
[362998588,1748547042130,-430.0,0.00019178,2]
[362998590,1748547042139,-430.0,0.00019178,2]
[362998592,1748547042149,-1000.0,0.00019178,2]
[362998594,1748547042158,-3400.61,0.00019178,2]
[362998596,1748547042168,-430.0,0.00019178,2]
[362998598,1748547042179,-430.0,0.00019178,2]
[362998600,1748547042189,-7495.44,0.00019178,2]
[362998603,1748547042198,-430.0,0.00019178,2]
[362998605,1748547042207,-4715.78,0.00019178,2]
[362998607,1748547042216,-4969.88,0.00019178,2]
[362998609,1748547042226,-441.23,0.00019178,2]
[362998610,1748547042235,-503.69984151,0.00019178,2]
[362998612,1748547042244,-430.0,0.00019178,2]
[362998614,1748547042253,-430.0,0.00019178,2]
[362998616,1748547042263,-400.0,0.00019178,2]
[362998618,1748547042271,-2722.09,0.00019178,2]
[362998621,1748547042281,-3296.15,0.00019178,2]
[362998623,1748547042290,-430.0,0.00019178,2]
[362998624,1748547042299,-2755.29,0.00019178,2]
[362998627,1748547042309,-430.0,0.00019178,2]
[362998629,1748547042320,-2320.55,0.00019178,2]
[362998631,1748547042328,-470.0,0.00019178,2]
[362998633,1748547042338,-430.0,0.00019178,2]
[362998635,1748547042347,-269.47891798,0.00019178,2]
[362998637,1748547042356,-451.07562079,0.00019178,2]
[362998639,1748547042365,-430.0,0.00019178,2]
[362998641,1748547042375,-430.0,0.00019178,2]
[362998643,1748547042384,-430.0,0.00019178,2]
[362998645,1748547042394,-430.0,0.00019178,2]
[362998647,1748547042403,-155.91384262,0.00019178,2]
[362998649,1748547042412,-430.0,0.00019178,2]
[362998651,1748547042421,-9143.76,0.00019178,2]
[362998653,1748547042431,-450.0,0.00019178,2]
[362998655,1748547042440,-430.0,0.00019178,2]
[362998657,1748547042450,-430.0,0.00019178,2]
[362998659,1748547042459,-430.0,0.00019178,2]
[362998661,1748547042469,-430.0,0.00019178,2]
[362998664,1748547042478,-813.06,0.00019178,2]
[362998666,1748547042498,-430.0,0.00019178,2]
[362998668,1748547042509,-945.31,0.00019178,2]
[362998670,1748547042519,-502.88796754,0.00019178,2]
[362998673,1748547042530,-2610.46,0.00019178,2]
[362998675,1748547042539,-430.0,0.00019178,2]
[362998677,1748547042550,-673.82,0.00019178,2]
[362998679,1748547042560,-430.0,0.00019178,2]
[362998681,1748547042571,-430.0,0.00019178,2]
[362998683,1748547042580,-430.0,0.00019178,2]
[362998685,1748547042591,-430.0,0.00019178,2]
[362998687,1748547042601,-473.54694317,0.00019178,2]
[362998689,1748547042611,-473.7476096,0.00019178,2]
[362998691,1748547042621,-7694.78,0.00019178,2]
[362998693,1748547042631,-430.0,0.00019178,2]
[362998695,1748547042640,-430.0,0.00019178,2]
[362998697,1748547042651,-430.0,0.00019178,2]
[362998699,1748547042660,-500.0,0.00019178,2]
[362998701,1748547042670,-500.0,0.00019178,2]
[362998703,1748547042680,-500.0,0.00019178,2]
[362998705,1748547042690,-430.0,0.00019178,2]
[362998707,1748547042699,-500.0,0.00019178,2]
[362998709,1748547042708,-500.0,0.00019178,2]
[362998711,1748547042718,-500.0,0.00019178,2]
[362998713,1748547042728,-430.0,0.00019178,2]
[362998715,1748547042737,-484.5127554,0.00019178,2]
[362998717,1748547042747,-430.0,0.00019178,2]
[362998719,1748547042756,-430.0,0.00019178,2]
[362998721,1748547042766,-4442.15,0.00019178,2]
[362998723,1748547042776,-430.0,0.00019178,2]
[362998725,1748547042788,-430.0,0.00019178,2]
[362998727,1748547042798,-450.0,0.00019178,2]
[362998729,1748547042808,-430.0,0.00019178,2]
[362998731,1748547042819,-430.0,0.00019178,2]
[362998733,1748547042829,-430.0,0.00019178,2]
[362998735,1748547042839,-4110.69,0.00019178,2]
[362998737,1748547042848,-284.49750108,0.00019178,2]
[362998740,1748547042860,-4577.38,0.00019178,2]
[362998742,1748547042869,-430.0,0.00019178,2]
[362998744,1748547042879,-155.83,0.00019178,2]
[362998746,1748547042888,-430.0,0.00019178,2]
[362998748,1748547042898,-430.0,0.00019178,2]
[362998750,1748547042908,-430.0,0.00019178,2]
[362998752,1748547042918,-430.0,0.00019178,2]
[362998755,1748547042927,-406.09963156,0.00019178,2]
[362998759,1748547042937,-430.0,0.00019178,2]
[362998762,1748547042948,-430.0,0.00019178,2]
[362998765,1748547042958,-430.0,0.00019178,2]
[362998768,1748547042968,-430.0,0.00019178,2]
[362998772,1748547042978,-430.0,0.00019178,2]
[362998774,1748547042987,-430.0,0.00019178,2]
[362998776,1748547042996,-430.0,0.00019178,2]
[362998778,1748547043005,-430.0,0.00019178,2]
[362998780,1748547043015,-3064.06,0.00019178,2]
[362998782,1748547043025,-430.0,0.00019178,2]
[362998785,1748547043034,-430.0,0.00019178,2]
[362998787,1748547043044,-430.0,0.00019178,2]
[362998789,1748547043053,-988.41,0.00019178,2]
[362998791,1748547043063,-523.77,0.00019178,2]
[362998793,1748547043073,-430.0,0.00019178,2]
[362998796,1748547043082,-505.31049009,0.00019178,2]
[362998798,1748547043091,-430.0,0.00019178,2]
[362998800,1748547043100,-430.0,0.00019178,2]
[362998802,1748547043109,-5934.6,0.00019178,2]
[362998804,1748547043118,-450.0,0.00019178,2]
[362998806,1748547043127,-430.0,0.00019178,2]
[362998808,1748547043137,-430.0,0.00019178,2]
[362998810,1748547043146,-430.0,0.00019178,2]
[362998812,1748547043155,-307.723936,0.00019178,2]
[362998814,1748547043164,-430.0,0.00019178,2]
[362998816,1748547043173,-1476.11,0.00019178,2]
[362998818,1748547043182,-333.9787208,0.00019178,2]
[362998820,1748547043191,-430.0,0.00019178,2]
[362998822,1748547043200,-430.0,0.00019178,2]
[362998824,1748547043209,-430.0,0.00019178,2]
[362998826,1748547043219,-500.0,0.00019178,2]
[362998828,1748547043229,-157.56157628,0.00019352,2]
[362998831,1748547043239,-500.0,0.00019451,2]
[362998833,1748547043248,-500.0,0.00019451,2]
[362998835,1748547043258,-500.0,0.00019451,2]
[362998837,1748547043267,-500.0,0.00019451,2]
[362998839,1748547043277,-500.0,0.00019451,2]
[362998841,1748547043286,-500.0,0.00019451,2]
[362998843,1748547043295,-430.0,0.00019452,2]
[362998845,1748547043304,-470.0,0.00019452,2]
[362998847,1748547043313,-430.0,0.00019452,2]
[362998849,1748547043323,-179.20272216,0.00019452,2]
[362998851,1748547043332,-430.0,0.00019452,2]
[362998853,1748547043342,-201.51,0.00019452,2]
[362998855,1748547043351,-430.0,0.00019452,2]
[362998857,1748547043360,-470.0,0.00019452,2]
[362998859,1748547043369,-430.0,0.00019452,2]
[362998861,1748547043379,-430.0,0.00019452,2]
[362998863,1748547043389,-430.0,0.00019452,2]
[362998865,1748547043398,-430.0,0.00019452,2]
[362998867,1748547043408,-470.0,0.00019452,2]
[362998869,1748547043417,-430.0,0.00019452,2]
[362998871,1748547043427,-430.0,0.00019452,2]
[362998873,1748547043436,-430.0,0.00019452,2]
[362998875,1748547043445,-430.0,0.00019452,2]
[362998877,1748547043455,-473.99653753,0.00019452,2]
[362998879,1748547043465,-473.44892798,0.00019452,2]
[362998881,1748547043475,-470.0,0.00019452,2]
[362998883,1748547043485,-450.0,0.00019452,2]
[362998886,1748547043494,-430.0,0.00019452,2]
[362998888,1748547043503,-430.0,0.00019452,2]
[362998890,1748547043512,-430.0,0.00019452,2]
[362998892,1748547043522,-450.0,0.00019452,2]
[362998894,1748547043531,-470.0,0.00019452,2]
[362998896,1748547043540,-430.0,0.00019452,2]
[362998898,1748547043549,-422.11302347,0.00019452,2]
[362998900,1748547043558,-430.0,0.00019452,2]
[362998902,1748547043569,-451.51,0.00019452,2]
[362998904,1748547043578,-430.0,0.00019452,2]
[362998906,1748547043587,-459.80679267,0.00019452,2]
[362998909,1748547043596,-430.0,0.00019452,2]
[362998913,1748547043605,-450.0,0.00019452,2]
[362998917,1748547043614,-373.52021058,0.00019452,2]
[362998921,1748547043624,-430.0,0.00019452,2]
[362998924,1748547043633,-470.0,0.00019452,2]
[362998926,1748547043643,-430.0,0.00019452,2]
[362998928,1748547043652,-470.0,0.00019452,2]
[362998930,1748547043661,-421.33386649,0.00019452,2]
[362998932,1748547043670,-430.0,0.00019452,2]
[362998934,1748547043680,-430.0,0.00019452,2]
[362998936,1748547043689,-470.0,0.00019452,2]
[362998938,1748547043698,-471.01340234,0.00019452,2]
[362998940,1748547043707,-430.0,0.00019452,2]
[362998942,1748547043716,-430.0,0.00019452,2]
[362998944,1748547043726,-470.0,0.00019452,2]
[362998946,1748547043735,-450.0,0.00019452,2]
[362998948,1748547043744,-430.0,0.00019452,2]
[362998950,1748547043754,-430.0,0.00019452,2]
[362998952,1748547043763,-420.0,0.00019452,2]
[362998954,1748547043773,-430.0,0.00019452,2]
[362998956,1748547043787,-470.0,0.00019452,2]
[362998958,1748547043797,-430.0,0.00019452,2]
[362998960,1748547043806,-1538.9,0.00019452,2]
[362998962,1748547043817,-490.0,0.00019452,2]
[362998964,1748547043827,-430.0,0.00019452,2]
[362998967,1748547043836,-2259.7,0.00019452,2]
[362998969,1748547043846,-432.27280839,0.00019452,2]
[362998971,1748547043857,-430.0,0.00019452,2]
[362998973,1748547043866,-430.0,0.00019452,2]
[362998975,1748547043874,-430.0,0.00019452,2]
[362998977,1748547043883,-618.12,0.00019452,2]
[362998979,1748547043893,-430.0,0.00019452,2]
[362998981,1748547043903,-430.0,0.00019452,2]
[362998983,1748547043912,-160.73115001,0.00019452,2]
[362998985,1748547043921,-430.0,0.00019452,2]
[362998987,1748547043930,-567.8,0.00019452,2]
[362998989,1748547043939,-430.0,0.00019452,2]
[362998991,1748547043949,-430.0,0.00019452,2]
[362998993,1748547043958,-430.0,0.00019452,2]
[362998995,1748547043968,-430.0,0.00019452,2]
[362998997,1748547043977,-544.07854985,0.00019452,2]
[362998999,1748547043986,-430.0,0.00019452,2]
[362999001,1748547043995,-430.0,0.00019452,2]
[362999003,1748547044004,-430.0,0.00019452,2]
[362999005,1748547044013,-370.0,0.00019452,2]
[362999007,1748547044022,-370.0,0.00019452,2]
[362999009,1748547044032,-430.0,0.00019452,2]
[362999011,1748547044041,-370.0,0.00019452,2]
[362999013,1748547044050,-430.0,0.00019452,2]
[362999015,1748547044060,-470.0,0.00019452,2]
[362999017,1748547044071,-430.0,0.00019452,2]
[362999019,1748547044081,-370.0,0.00019452,2]
[362999021,1748547044090,-430.0,0.00019452,2]
[362999023,1748547044100,-370.0,0.00019452,2]
[362999038,1748547044232,-430.0,0.00019452,2]
[362999040,1748547044242,-430.0,0.00019452,2]
[362999042,1748547044251,-430.0,0.00019452,2]
[362999044,1748547044261,-430.0,0.00019452,2]
[362999046,1748547044271,-370.0,0.00019452,2]
[362999048,1748547044280,-430.0,0.00019452,2]
[362999050,1748547044289,-430.0,0.00019452,2]
[362999052,1748547044298,-430.0,0.00019452,2]
[362999054,1748547044307,-430.0,0.00019452,2]
[362999056,1748547044318,-430.0,0.00019452,2]
[362999058,1748547044327,-430.0,0.00019452,2]
[362999060,1748547044336,-430.0,0.00019452,2]
[362999062,1748547044345,-724.76,0.00019452,2]
[362999064,1748547044355,-370.0,0.00019452,2]
[362999066,1748547044365,-430.0,0.00019452,2]
[362999068,1748547044375,-430.0,0.00019452,2]
[362999070,1748547044384,-430.0,0.00019452,2]
[362999072,1748547044397,-430.0,0.00019452,2]
[362999074,1748547044406,-430.0,0.00019452,2]
[362999076,1748547044416,-430.0,0.00019452,2]
[362999078,1748547044426,-430.0,0.00019452,2]
[362999080,1748547044436,-430.0,0.00019452,2]
[362999082,1748547044445,-9073.78,0.00019452,2]
[362999084,1748547044454,-430.0,0.00019452,2]
[362999086,1748547044464,-430.0,0.00019452,2]
[362999088,1748547044473,-585.51,0.00019452,2]
[362999090,1748547044482,-2539.85,0.00019452,2]
[362999093,1748547044492,-5598.69,0.00019452,2]
[362999095,1748547044501,-430.0,0.00019452,2]
[362999097,1748547044511,-430.0,0.00019452,2]
[362999098,1748547044520,-430.0,0.00019452,2]
[362999100,1748547044530,-430.0,0.00019452,2]
[362999102,1748547044540,-1219.64,0.00019452,2]
[362999105,1748547044549,-430.0,0.00019452,2]
[362999107,1748547044559,-290.0,0.00019452,2]
[362999109,1748547044570,-430.0,0.00019452,2]
[362999111,1748547044580,-817.96,0.00019452,2]
[362999113,1748547044590,-430.0,0.00019452,2]
[362999115,1748547044599,-500.0,0.00019452,2]
[362999117,1748547044609,-430.0,0.00019452,2]
[362999119,1748547044618,-219.44703505,0.00019452,2]
[362999121,1748547044628,-2357.58,0.00019452,2]
[362999123,1748547044637,-430.0,0.00019452,2]
[362999125,1748547044646,-469.36,0.00019452,2]
[362999127,1748547044655,-430.0,0.00019452,2]
[362999128,1748547044664,-461.92,0.00019452,2]
[362999130,1748547044674,-430.0,0.00019452,2]
[362999132,1748547044683,-804.15,0.00019452,2]
[362999135,1748547044693,-279.68876216,0.00019452,2]
[362999137,1748547044704,-634.47,0.00019452,2]
[362999138,1748547044713,-430.0,0.00019452,2]
[362999141,1748547044722,-430.0,0.00019452,2]
[362999142,1748547044732,-547.79,0.00019452,2]
[362999143,1748547044741,-430.0,0.00019452,2]
[362999144,1748547044751,-430.0,0.00019452,2]
[362999145,1748547044760,-430.0,0.00019452,2]
[362999146,1748547044771,-430.0,0.00019452,2]
[362999147,1748547044782,-3675.07,0.00019452,2]
[362999148,1748547044791,-177.19976881,0.00019452,2]
[362999149,1748547044801,-430.0,0.00019452,2]
[362999150,1748547044811,-430.0,0.00019452,2]
[362999151,1748547044822,-1488.94,0.00019452,2]
[362999152,1748547044831,-430.0,0.00019452,2]
[362999153,1748547044840,-481.49,0.00019452,2]
[362999154,1748547044850,-430.0,0.00019452,2]
[362999155,1748547044861,-250.83,0.00019452,2]
[362999156,1748547044871,-1406.49,0.00019452,2]
[362999157,1748547044881,-430.0,0.00019452,2]
[362999158,1748547044890,-430.0,0.00019452,2]
[362999159,1748547044899,-5245.13,0.00019452,2]
[362999160,1748547044909,-470.0,0.00019452,2]
[362999161,1748547044918,-430.0,0.00019452,2]
[362999162,1748547044927,-430.0,0.00019452,2]
[362999164,1748547044936,-1000.0,0.00019452,2]
[362999166,1748547044946,-3400.61,0.00019452,2]
[362999168,1748547044956,-451.33094485,0.00019452,2]
[362999170,1748547044965,-7495.44,0.00019452,2]
[362999172,1748547044975,-4715.78,0.00019452,2]
[362999174,1748547044984,-4969.88,0.00019452,2]
[362999176,1748547044994,-441.23,0.00019452,2]
[362999177,1748547045003,-430.0,0.00019452,2]
[362999179,1748547045012,-430.0,0.00019452,2]
[362999181,1748547045022,-2722.09,0.00019452,2]
[362999183,1748547045031,-3296.15,0.00019452,2]
[362999185,1748547045040,-2755.29,0.00019452,2]
[362999187,1748547045050,-430.0,0.00019452,2]
[362999189,1748547045059,-2320.55,0.00019452,2]
[362999191,1748547045070,-430.0,0.00019452,2]
[362999193,1748547045079,-259.49775045,0.00019452,2]
[362999195,1748547045088,-430.0,0.00019452,2]
[362999197,1748547045098,-450.0,0.00019452,2]
[362999199,1748547045107,-430.0,0.00019452,2]
[362999201,1748547045116,-430.0,0.00019452,2]
[362999203,1748547045125,-9143.76,0.00019452,2]
[362999205,1748547045134,-430.0,0.00019452,2]
[362999207,1748547045145,-430.0,0.00019452,2]
[362999209,1748547045154,-813.06,0.00019452,2]
[362999211,1748547045164,-945.31,0.00019452,2]
[362999213,1748547045173,-2610.46,0.00019452,2]
[362999215,1748547045183,-673.82,0.00019452,2]
[362999217,1748547045192,-430.0,0.00019452,2]
[362999219,1748547045201,-430.0,0.00019452,2]
[362999221,1748547045210,-430.0,0.00019452,2]
[362999223,1748547045219,-430.0,0.00019452,2]
[362999226,1748547045229,-7694.78,0.00019452,2]
[362999228,1748547045239,-470.0,0.00019452,2]
[362999230,1748547045248,-430.0,0.00019452,2]
[362999232,1748547045260,-430.0,0.00019452,2]
[362999234,1748547045269,-430.0,0.00019452,2]
[362999235,1748547045278,-430.0,0.00019452,2]
[362999238,1748547045288,-430.0,0.00019452,2]
[362999239,1748547045297,-430.0,0.00019452,2]
[362999241,1748547045307,-4442.15,0.00019452,2]
[362999243,1748547045317,-470.0,0.00019452,2]
[362999245,1748547045326,-430.0,0.00019452,2]
[362999247,1748547045335,-387.00550337,0.00019452,2]
[362999249,1748547045346,-430.0,0.00019452,2]
[362999251,1748547045355,-4110.69,0.00019452,2]
[362999254,1748547045365,-4577.38,0.00019452,2]
[362999255,1748547045374,-470.0,0.00019452,2]
[362999257,1748547045384,-430.0,0.00019452,2]
[362999260,1748547045393,-450.0,0.00019452,2]
[362999262,1748547045403,-430.0,0.00019452,2]
[362999263,1748547045413,-430.0,0.00019452,2]
[362999265,1748547045422,-430.0,0.00019452,2]
[362999267,1748547045431,-430.0,0.00019452,2]
[362999269,1748547045440,-430.0,0.00019452,2]
[362999271,1748547045449,-430.0,0.00019452,2]
[362999273,1748547045458,-470.0,0.00019452,2]
[362999275,1748547045467,-430.0,0.00019452,2]
[362999277,1748547045477,-430.0,0.00019452,2]
[362999279,1748547045486,-470.0,0.00019452,2]
[362999281,1748547045496,-3064.06,0.00019452,2]
[362999284,1748547045506,-430.0,0.00019452,2]
[362999285,1748547045515,-430.0,0.00019452,2]
[362999287,1748547045525,-470.0,0.00019452,2]
[362999289,1748547045534,-988.41,0.00019452,2]
[362999291,1748547045543,-523.77,0.00019452,2]
[362999293,1748547045553,-430.0,0.00019452,2]
[362999295,1748547045562,-473.24580113,0.00019452,2]
[362999297,1748547045573,-5934.6,0.00019452,2]
[362999299,1748547045583,-222.67091253,0.00019452,2]
[362999301,1748547045593,-430.0,0.00019452,2]
[362999303,1748547045602,-430.0,0.00019452,2]
[362999305,1748547045611,-430.0,0.00019452,2]
[362999307,1748547045620,-1476.11,0.00019452,2]
[362999309,1748547045629,-430.0,0.00019452,2]
[362999311,1748547045639,-510.38329689,0.00019452,2]
[362999313,1748547045650,-500.0,0.00019473,2]
[362999315,1748547045659,-500.0,0.00019473,2]
[362999317,1748547045669,-500.0,0.00019473,2]
[362999319,1748547045678,-500.0,0.00019473,2]
[362999321,1748547045687,-500.0,0.00019473,2]
[362999323,1748547045697,-462.021599,0.00019473,2]
[362999325,1748547045706,-322.03608124,0.00019473,2]
[362999327,1748547045715,-500.87138172,0.00019473,2]
[362999329,1748547045724,-19629.250546,0.000195,2]
[362999331,1748547045734,-444.32,0.00019504,2]
[362999333,1748547045743,-500.0,0.00019724,2]
[362999335,1748547045753,-500.0,0.00019725,2]
[362999337,1748547045763,-500.0,0.00019725,2]
[362999339,1748547045773,-500.0,0.00019725,2]
[362999341,1748547045783,-401.81795174,0.00019725,2]
[362999343,1748547045792,-490.0,0.00019726,2]
[362999345,1748547045801,-430.0,0.00019726,2]
[362999347,1748547045810,-450.0,0.00019726,2]
[362999351,1748547045822,-430.0,0.00019726,2]
[362999354,1748547045831,-430.0,0.00019726,2]
[362999356,1748547045841,-430.0,0.00019726,2]
[362999359,1748547045851,-390.0,0.00019726,2]
[362999362,1748547045861,-430.0,0.00019726,2]
[362999364,1748547045869,-240.0,0.00019726,2]
[362999368,1748547045879,-241.98,0.00019726,2]
[362999372,1748547045889,-430.0,0.00019726,2]
[362999374,1748547045898,-420.0,0.00019726,2]
[362999377,1748547045907,-430.0,0.00019726,2]
[362999379,1748547045917,-430.0,0.00019726,2]
[362999382,1748547045926,-430.0,0.00019726,2]
[362999384,1748547045935,-200.54078875,0.00019726,2]
[362999386,1748547045945,-451.51,0.00019726,2]
[362999388,1748547045955,-430.0,0.00019726,2]
[362999390,1748547045964,-430.0,0.00019726,2]
[362999392,1748547045974,-430.0,0.00019726,2]
[362999394,1748547045983,-430.0,0.00019726,2]
[362999396,1748547045992,-430.0,0.00019726,2]
[362999398,1748547046002,-464.08,0.00019726,2]
[362999400,1748547046011,-430.0,0.00019726,2]
[362999402,1748547046020,-473.57840911,0.00019726,2]
[362999404,1748547046029,-430.0,0.00019726,2]
[362999406,1748547046038,-430.0,0.00019726,2]
[362999408,1748547046047,-430.0,0.00019726,2]
[362999410,1748547046057,-430.0,0.00019726,2]
[362999412,1748547046069,-1538.9,0.00019726,2]
[362999414,1748547046080,-2259.7,0.00019726,2]
[362999416,1748547046094,-430.0,0.00019726,2]
[362999418,1748547046103,-430.0,0.00019726,2]
[362999420,1748547046113,-618.12,0.00019726,2]
[362999422,1748547046122,-430.0,0.00019726,2]
[362999424,1748547046131,-430.0,0.00019726,2]
[362999426,1748547046141,-567.8,0.00019726,2]
[362999428,1748547046151,-490.0,0.00019726,2]
[362999430,1748547046160,-430.0,0.00019726,2]
[362999432,1748547046169,-430.0,0.00019726,2]
[362999434,1748547046178,-430.0,0.00019726,2]
[362999436,1748547046188,-430.0,0.00019726,2]
[362999438,1748547046197,-430.0,0.00019726,2]
[362999440,1748547046207,-430.0,0.00019726,2]
[362999442,1748547046217,-430.0,0.00019726,2]
[362999444,1748547046226,-430.0,0.00019726,2]
[362999446,1748547046236,-430.0,0.00019726,2]
[362999448,1748547046245,-430.0,0.00019726,2]
[362999450,1748547046256,-470.0,0.00019726,2]
[362999452,1748547046268,-724.76,0.00019726,2]
[362999454,1748547046280,-430.0,0.00019726,2]
[362999456,1748547046290,-430.0,0.00019726,2]
[362999458,1748547046299,-430.0,0.00019726,2]
[362999460,1748547046308,-430.0,0.00019726,2]
[362999462,1748547046319,-430.0,0.00019726,2]
[362999464,1748547046328,-9073.78,0.00019726,2]
[362999466,1748547046338,-430.0,0.00019726,2]
[362999468,1748547046347,-430.0,0.00019726,2]
[362999470,1748547046356,-585.51,0.00019726,2]
[362999472,1748547046366,-2539.85,0.00019726,2]
[362999474,1748547046376,-5598.69,0.00019726,2]
[362999476,1748547046387,-430.0,0.00019726,2]
[362999478,1748547046396,-430.0,0.00019726,2]
[362999480,1748547046414,-1219.64,0.00019726,2]
[362999482,1748547046423,-430.0,0.00019726,2]
[362999484,1748547046432,-817.96,0.00019726,2]
[362999486,1748547046442,-461.99279265,0.00019726,2]
[362999488,1748547046452,-166.92,0.00019726,2]
[362999490,1748547046461,-430.0,0.00019726,2]
[362999492,1748547046470,-2357.58,0.00019726,2]
[362999494,1748547046479,-430.0,0.00019726,2]
[362999496,1748547046488,-469.36,0.00019726,2]
[362999498,1748547046498,-175.44,0.00019726,2]
[362999500,1748547046508,-461.92,0.00019726,2]
[362999502,1748547046518,-430.0,0.00019726,2]
[362999504,1748547046527,-804.15,0.00019726,2]
[362999507,1748547046537,-634.47,0.00019726,2]
[362999509,1748547046546,-430.0,0.00019726,2]
[362999511,1748547046555,-430.0,0.00019726,2]
[362999513,1748547046565,-547.79,0.00019726,2]
[362999515,1748547046577,-430.0,0.00019726,2]
[362999517,1748547046586,-430.0,0.00019726,2]
[362999519,1748547046596,-430.0,0.00019726,2]
[362999521,1748547046606,-430.0,0.00019726,2]
[362999523,1748547046615,-3675.07,0.00019726,2]
[362999525,1748547046626,-430.0,0.00019726,2]
[362999527,1748547046645,-1488.94,0.00019726,2]
[362999529,1748547046657,-430.0,0.00019726,2]
[362999531,1748547046668,-481.49,0.00019726,2]
[362999533,1748547046678,-450.0,0.00019726,2]
[362999535,1748547046690,-1406.49,0.00019726,2]
[362999537,1748547046700,-430.0,0.00019726,2]
[362999539,1748547046709,-430.0,0.00019726,2]
[362999541,1748547046719,-5245.13,0.00019726,2]
[362999542,1748547046728,-430.0,0.00019726,2]
[362999555,1748547046835,-430.0,0.00019726,2]
[362999557,1748547046858,-1000.0,0.00019726,2]
[362999559,1748547046868,-3400.61,0.00019726,2]
[362999561,1748547046878,-7495.44,0.00019726,2]
[362999564,1748547046888,-4715.78,0.00019726,2]
[362999566,1748547046897,-4969.88,0.00019726,2]
[362999567,1748547046907,-441.23,0.00019726,2]
[362999569,1748547046916,-430.0,0.00019726,2]
[362999571,1748547046926,-430.0,0.00019726,2]
[362999573,1748547046935,-2722.09,0.00019726,2]
[362999575,1748547046943,-3296.15,0.00019726,2]
[362999577,1748547046953,-2755.29,0.00019726,2]
[362999579,1748547046961,-467.79,0.00019726,2]
[362999581,1748547046972,-2320.55,0.00019726,2]
[362999583,1748547046981,-430.0,0.00019726,2]